fUST/lending_fUST_20240930
["ID","MTS","AMOUNT","RATE_DAILY","PERIOD"]
[339505890,1727664640540,-64631.6512295,0.0001505,2]
[339505891,1727664640550,-2296.63,0.0001505,2]
[339505892,1727664640559,-500.0,0.0001505,2]
[339505893,1727664640569,-500.0,0.0001505,2]
[339505894,1727664640580,-500.0,0.0001505,2]
[339505895,1727664640589,-500.0,0.0001505,2]
[339505896,1727664640599,-500.0,0.0001505,2]
[339505897,1727664640609,-500.0,0.0001505,2]
[339505898,1727664640619,-500.0,0.0001505,2]
[339505899,1727664640628,-500.0,0.0001505,2]
[339505900,1727664640639,-500.0,0.0001505,2]
[339505901,1727664640649,-1152.77,0.0001505,2]
[339505902,1727664640659,-500.0,0.0001505,2]
[339505903,1727664640669,-569.97,0.0001505,2]
[339505904,1727664640678,-500.0,0.0001505,2]
[339505905,1727664640688,-500.0,0.0001505,2]
[339505906,1727664640697,-500.0,0.0001505,2]
[339505907,1727664640707,-500.0,0.0001505,2]
[339505908,1727664640717,-708.13,0.0001505,2]
[339505909,1727664640726,-500.0,0.0001505,2]
[339505910,1727664640736,-536.27154334,0.0001505,2]
[339505911,1727664640746,-500.0,0.0001505,2]
[339505912,1727664640755,-500.0,0.0001505,2]
[339505913,1727664640765,-1931.95,0.0001505,2]
[339505914,1727664640774,-500.0,0.0001505,2]
[339505915,1727664640786,-2942.41386743,0.0001505,2]
[339505945,1727664646106,-26191.87613257,0.0001505,2]
[339505946,1727664646116,-500.0,0.0001505,2]
[339505947,1727664646126,-564.85,0.0001505,2]
[339505948,1727664646135,-482.6233952,0.0001505,2]
[339505949,1727664646146,-500.0,0.0001505,2]
[339505950,1727664646156,-500.0,0.0001505,2]
[339505951,1727664646166,-563.39,0.0001505,2]
[339505952,1727664646175,-4901.26,0.0001505,2]
[339505953,1727664646185,-500.0,0.0001505,2]
[339505954,1727664646194,-500.0,0.0001505,2]
[339505955,1727664646204,-500.0,0.0001505,2]
[339505956,1727664646213,-612.1,0.0001505,2]
[339505957,1727664646223,-500.0,0.0001505,2]
[339505958,1727664646236,-4782.369226,0.0001505,2]
[339505959,1727664646246,-1963.0820515,0.0001505,2]
[339505960,1727664646256,-13543.21094645,0.0001505,2]
[339505961,1727664646268,-643.8,0.0001505,2]
[339505963,1727664817213,190.7214644,0.00022,120]
[339505970,1727665509911,1492.4,0.00022,120]
[339505974,1727665731681,357.0,0.0001,2]
[339506075,1727665835573,-465.00282304,0.00014426,2]
[339506077,1727665835582,-285.483,0.00014684,2]
[339506078,1727665835591,-300.0,0.00014899,2]
[339506079,1727665835600,-300.0,0.00014899,2]
[339506080,1727665835610,-4206.54454843,0.000149,2]
[339506081,1727665835619,-150.112233,0.000149,2]
[339506082,1727665835628,-155.880307,0.000149,2]
[339506083,1727665835638,-154.68999948,0.000149,2]
[339506084,1727665835647,-340.06103141,0.00014908,2]
[339506085,1727665835657,-77675.7421782,0.00014908,2]
[339506086,1727665835666,-5536.63647886,0.00014908,2]
[339506087,1727665835676,-186.03486428,0.00014917,2]
[339506088,1727665835685,-569.76577754,0.00014917,2]
[339506089,1727665835697,-500.0,0.00014917,2]
[339506090,1727665835706,-563.94,0.00014917,2]
[339506091,1727665835715,-11817.83618211,0.00014918,2]
[339506092,1727665835725,-12648.98933135,0.00014918,2]
[339506124,1727665840413,-643.31,0.00014918,2]
[339506126,1727665840425,-3575.19867027,0.00014918,2]
[339506128,1727665840434,-155351.81687103,0.00014918,2]
[339506129,1727665840447,-1569.11270868,0.00014938,2]
[339506131,1727665840458,-1000.0,0.00015,2]
[339506133,1727665840467,-150.112233,0.00015,2]
[339506135,1727665840477,-150.112233,0.00015,2]
[339506136,1727665840487,-150.112233,0.00015,2]
[339506137,1727665840497,-150.112233,0.00015,2]
[339506138,1727665840507,-150.112233,0.00015,2]
[339506139,1727665840516,-150.112233,0.00015,2]
[339506140,1727665840526,-150.112233,0.00015,2]
[339506141,1727665840536,-150.112233,0.00015,2]
[339506142,1727665840545,-38837.8710891,0.0001502,2]
[339506143,1727665840555,-2768.31823943,0.0001502,2]
[339506144,1727665840565,-38837.8710891,0.00015027,2]
[339506145,1727665840575,-2768.31823943,0.00015027,2]
[339506146,1727665840584,-500.0,0.00015028,2]
[339506147,1727665840594,-116513.613267,0.00015028,2]
[339506148,1727665840603,-3338.08456767,0.00015028,2]
[339506157,1727665843579,-287.99530272,0.00014917,2]
[339506158,1727665843588,-1872.63799098,0.00015028,2]
[339506169,1727665881518,796.83,0.00010959,2]
[339506170,1727666162905,170.4568799,0.00014045,2]
[339506222,1727667038996,-163.2015073,0.000148,2]
[339506223,1727667039007,-1000.0,0.00014817,2]
[339506224,1727667039017,-1412.20143783,0.00014828,2]
[339506225,1727667039026,-600.0,0.00014856,2]
[339506226,1727667039036,-300.0,0.00014899,2]
[339506227,1727667039045,-300.0,0.00014899,2]
[339506228,1727667039054,-150.112233,0.000149,2]
[339506229,1727667039063,-150.112233,0.000149,2]
[339506230,1727667039073,-150.112233,0.000149,2]
[339506231,1727667039082,-150.112233,0.000149,2]
[339506232,1727667039092,-150.112233,0.000149,2]
[339506233,1727667039101,-150.112233,0.000149,2]
[339506234,1727667039110,-150.112233,0.000149,2]
[339506235,1727667039121,-4035.27,0.00014905,2]
[339506236,1727667039131,-500.0,0.00014905,2]
[339506237,1727667039141,-500.0,0.00014905,2]
[339506238,1727667039150,-500.0,0.00014905,2]
[339506239,1727667039159,-500.0,0.00014905,2]
[339506240,1727667039168,-500.0,0.00014905,2]
[339506241,1727667039177,-695.79,0.00014905,2]
[339506242,1727667039187,-549.99,0.00014905,2]
[339506243,1727667039197,-549.99,0.00014905,2]
[339506244,1727667039206,-549.99,0.00014905,2]
[339506245,1727667039215,-549.99,0.00014905,2]
[339506246,1727667039225,-500.0,0.00014905,2]
[339506247,1727667039234,-500.0,0.00014905,2]
[339506248,1727667039243,-500.0,0.00014905,2]
[339506249,1727667039252,-226.70735427,0.00014905,2]
[339506250,1727667039261,-26955.8886056,0.00014906,2]
[339506251,1727667039271,-27049.16385697,0.00014906,2]
[339506278,1727667043739,-5407.78377514,0.00014906,2]
[339506302,1727667054186,669.2,0.00010959,2]
[339506303,1727667322946,150000.0,0.00014,2]
[339506304,1727667340813,161.43896,0.00013817,2]
[339506305,1727667340896,161.43896,0.00013852,2]
[339506306,1727667341137,161.43896,0.00013886,2]
[339506307,1727667406754,-10360.61333458,0.00016,7]
[339506308,1727667407145,-1000.0,0.00017,17]
[339506309,1727667407254,-889.01285342,0.00018,10]
[339506310,1727667407446,-300.373812,0.000154,5]
[339506327,1727667742477,3000.0,0.00022,120]
[339506328,1727667766640,2674.65226,0.00021,60]
[339506368,1727668232689,-1000.0,0.00014254,2]
[339506370,1727668232699,-6085.98185481,0.00014671,2]
[339506373,1727668232718,-3758.71402767,0.00014698,2]
[339506375,1727668232731,-197.18592194,0.000147,2]
[339506377,1727668232742,-317.16437553,0.00014709,2]
[339506379,1727668232752,-317.1643755,0.00014733,2]
[339506381,1727668232762,-317.1643755,0.00014757,2]
[339506384,1727668232772,-150.39677943,0.00014778,2]
[339506386,1727668232783,-317.1643755,0.00014781,2]
[339506388,1727668232793,-300.0,0.00014796,2]
[339506390,1727668232803,-300.0,0.00014796,2]
[339506392,1727668232812,-12656.83322616,0.00014798,2]
[339506481,1727668238745,-151.13823618,0.00014798,2]
[339506482,1727668238755,-850.61484767,0.00014798,2]
[339506483,1727668238775,-1000.94484769,0.00014798,2]
[339506493,1727668240660,-6349.24282662,0.00014798,2]
[339506575,1727668246708,-645.48,0.00014798,2]
[339506576,1727668246720,-267.85330511,0.00014798,2]
[339506577,1727668246736,-517.73794032,0.00014798,2]
[339506595,1727668563501,266.3200379,0.00013886,2]
[339506686,1727669442971,-158.58218775,0.00014597,2]
[339506687,1727669442980,-300.0,0.00014687,2]
[339506688,1727669442990,-300.0,0.00014687,2]
[339506689,1727669442999,-591.2161009,0.00014688,2]
[339506690,1727669443011,-679.76519321,0.00014688,2]
[339506691,1727669443020,-158.58218775,0.00014688,2]
[339506692,1727669443029,-5908.91809105,0.00014688,2]
[339506693,1727669443039,-151.13823618,0.00014688,2]
[339506694,1727669443049,-2187.02129112,0.00014688,2]
[339506695,1727669443059,-10204.47676189,0.00014689,2]
[339506699,1727669445847,-500.0,0.00014688,2]
[339506700,1727669445856,-126.92037261,0.00014689,2]
[339506702,1727669975681,1000.0,0.00013727,2]
[339510058,1727670632526,-703.91848104,0.00014567,2]
[339510408,1727670646135,-2721.78306193,0.00014567,2]
[339510409,1727670646145,-1143.88316469,0.00014576,2]
[339510410,1727670646154,-300.0,0.00014596,2]
[339510412,1727670646163,-13610.52097544,0.00014597,2]
[339510413,1727670646173,-150.0,0.000146,2]
[339510414,1727670646182,-1179.08001359,0.00014666,2]
[339510415,1727670646191,-160.0,0.00014666,2]
[339510417,1727670646200,-500.0,0.00014666,2]
[339510418,1727670646209,-302.02946809,0.00014666,2]
[339510419,1727670646218,-500.0,0.00014666,2]
[339510420,1727670646227,-451.99254565,0.00014666,2]
[339510422,1727670646236,-500.0,0.00014666,2]
[339510423,1727670646245,-500.0,0.00014666,2]
[339510424,1727670646254,-500.0,0.00014666,2]
[339510425,1727670646263,-500.0,0.00014666,2]
[339510426,1727670646272,-500.0,0.00014666,2]
[339510428,1727670646281,-500.0,0.00014666,2]
[339510429,1727670646291,-500.0,0.00014666,2]
[339510430,1727670646301,-500.0,0.00014666,2]
[339510431,1727670646310,-500.0,0.00014666,2]
[339510433,1727670646319,-500.0,0.00014666,2]
[339510434,1727670646328,-500.0,0.00014666,2]
[339510435,1727670646337,-500.0,0.00014666,2]
[339510436,1727670646347,-500.0,0.00014666,2]
[339510438,1727670646355,-500.0,0.00014666,2]
[339510439,1727670646364,-500.0,0.00014666,2]
[339510440,1727670646373,-500.0,0.00014666,2]
[339510441,1727670646383,-500.0,0.00014666,2]
[339510443,1727670646391,-500.0,0.00014666,2]
[339510444,1727670646401,-425.68915044,0.00014666,2]
[339510445,1727670646410,-500.0,0.00014666,2]
[339510446,1727670646419,-540.44,0.00014666,2]
[339510448,1727670646428,-500.0,0.00014666,2]
[339510449,1727670646437,-838.31,0.00014666,2]
[339510450,1727670646447,-2954.45904553,0.00014667,2]
[339510451,1727670646456,-151.1382362,0.00014667,2]
[339510453,1727670646465,-4389.23629414,0.00014667,2]
[339512789,1727671341868,504.35254423,0.0001411,2]
[339512790,1727671416696,500.0,0.00014,2]
[339512791,1727671424221,500.0,0.00014,2]
[339512792,1727671431739,500.0,0.00014,2]
[339512793,1727671438073,500.0,0.00014,2]
[339512794,1727671442680,500.0,0.00014,2]
[339512795,1727671447557,291.0,0.00014,2]
[339512855,1727671833626,28651.0,0.00021,60]
[339512893,1727671838416,-300.0,0.00014499,2]
[339512895,1727671838426,-300.0,0.00014499,2]
[339512897,1727671838435,-500.0,0.000145,2]
[339512899,1727671838444,-500.0,0.000145,2]
[339512901,1727671838453,-136.38227996,0.000145,2]
[339512904,1727671838465,-363.61772004,0.000145,2]
[339512906,1727671838474,-500.0,0.000145,2]
[339512908,1727671838483,-1002.38239419,0.000145,2]
[339512910,1727671838493,-500.0,0.000145,2]
[339512912,1727671838502,-2997.48885009,0.00014527,2]
[339512914,1727671838512,-158.58218775,0.00014538,2]
[339512916,1727671838521,-477.92884793,0.00014545,2]
[339512919,1727671838541,-678.66412963,0.00014545,2]
[339512921,1727671838552,-158.58218775,0.00014547,2]
[339512923,1727671838563,-3613.78305714,0.00014565,2]
[339512925,1727671838572,-151.010564,0.000146,2]
[339512927,1727671838581,-500.0,0.00014627,2]
[339512929,1727671838590,-500.0,0.00014627,2]
[339512931,1727671838599,-222.48535796,0.00014627,2]
[339512933,1727671838609,-500.0,0.00014627,2]
[339512935,1727671838618,-500.0,0.00014627,2]
[339512937,1727671838627,-500.0,0.00014627,2]
[339512939,1727671838636,-500.0,0.00014627,2]
[339512940,1727671838645,-500.0,0.00014627,2]
[339512942,1727671838655,-500.0,0.00014627,2]
[339512944,1727671838664,-500.0,0.00014627,2]
[339512946,1727671838673,-500.0,0.00014627,2]
[339512948,1727671838682,-300.0,0.00014627,2]
[339512950,1727671838692,-500.0,0.00014627,2]
[339512952,1727671838701,-500.0,0.00014627,2]
[339512954,1727671838710,-500.0,0.00014627,2]
[339512956,1727671838719,-500.0,0.00014627,2]
[339512958,1727671838728,-500.0,0.00014627,2]
[339512960,1727671838738,-500.0,0.00014627,2]
[339512962,1727671838747,-500.0,0.00014627,2]
[339512964,1727671838757,-160.0,0.00014627,2]
[339512966,1727671838767,-493.8331007,0.00014627,2]
[339512968,1727671838777,-196.77174564,0.00014627,2]
[339512970,1727671838786,-241.39946458,0.00014627,2]
[339512972,1727671838795,-470.92022017,0.00014627,2]
[339512974,1727671838805,-500.0,0.00014627,2]
[339512976,1727671838814,-500.0,0.00014627,2]
[339512978,1727671838824,-483.7199783,0.00014627,2]
[339512980,1727671838833,-500.0,0.00014627,2]
[339512982,1727671838842,-500.0,0.00014627,2]
[339512984,1727671838852,-151.0,0.00014627,2]
[339512986,1727671838861,-151.0,0.00014627,2]
[339512988,1727671838870,-151.0,0.00014627,2]
[339512990,1727671838879,-151.0,0.00014627,2]
[339512992,1727671838892,-151.0,0.00014627,2]
[339512994,1727671838901,-151.0,0.00014627,2]
[339512996,1727671838910,-151.0,0.00014627,2]
[339512998,1727671838919,-180.473208,0.00014627,2]
[339513000,1727671838928,-151.0,0.00014627,2]
[339513002,1727671838938,-151.0,0.00014627,2]
[339513004,1727671838947,-151.0,0.00014627,2]
[339513006,1727671838957,-160.0,0.00014627,2]
[339513008,1727671838967,-4431.68856829,0.00014627,2]
[339513010,1727671838976,-151.13823618,0.00014627,2]
[339513012,1727671838986,-1683.05065236,0.00014627,2]
[339513014,1727671838995,-1889.15473762,0.00014628,2]
[339513125,1727671840373,-24937.62037518,0.00014628,2]
[339513127,1727671840383,-68614.5334738,0.00014628,2]
[339513129,1727671840392,-53653.5502255,0.00014628,2]
[339513131,1727671840402,-137229.066948,0.00014628,2]
[339513133,1727671840412,-151.0,0.00014628,2]
[339513135,1727671840422,-151.0,0.00014628,2]
[339513137,1727671840432,-151.0,0.00014628,2]
[339513139,1727671840441,-151.0,0.00014628,2]
[339513141,1727671840450,-151.0,0.00014628,2]
[339513143,1727671840459,-151.0,0.00014628,2]
[339513145,1727671840468,-168.680895,0.00014628,2]
[339513147,1727671840477,-151.0,0.00014628,2]
[339513149,1727671840486,-151.0,0.00014628,2]
[339513151,1727671840495,-151.0,0.00014628,2]
[339513153,1727671840504,-151.0,0.00014628,2]
[339513155,1727671840514,-151.0,0.00014628,2]
[339513157,1727671840523,-151.0,0.00014628,2]
[339513159,1727671840532,-151.0,0.00014628,2]
[339513161,1727671840541,-151.0,0.00014628,2]
[339513163,1727671840551,-151.0,0.00014628,2]
[339513165,1727671840561,-151.0,0.00014628,2]
[339513167,1727671840570,-153.580886,0.00014628,2]
[339513191,1727671840790,-53653.5502255,0.00014628,2]
[339513194,1727671840812,-137229.066948,0.00014628,2]
[339513196,1727671840822,-26826.7751128,0.00014628,2]
[339513198,1727671840831,-68614.5334738,0.00014628,2]
[339513200,1727671840840,-53653.5502255,0.00014629,2]
[339513202,1727671840850,-26826.7751128,0.00014629,2]
[339513204,1727671840860,-26826.7751128,0.00014635,2]
[339513206,1727671840869,-1804.61,0.00014636,2]
[339513208,1727671840878,-500.0,0.00014636,2]
[339513210,1727671840892,-500.0,0.00014636,2]
[339513212,1727671840901,-500.0,0.00014636,2]
[339513214,1727671840911,-500.0,0.00014636,2]
[339513216,1727671840920,-666.8,0.00014636,2]
[339513218,1727671840930,-720.74,0.00014636,2]
[339513220,1727671840940,-160.597494,0.00014636,2]
[339513222,1727671840949,-672.32,0.00014636,2]
[339513223,1727671840959,-26826.7751128,0.00014636,2]
[339513225,1727671840969,-417.60163001,0.00014637,2]
[339516499,1727672135590,1000.0,0.00014009,2]
[339516528,1727673032606,-300.0,0.0001446,2]
[339516529,1727673032616,-236.04086264,0.0001446,2]
[339516544,1727673038852,-63.95913736,0.0001446,2]
[339516545,1727673038862,-329.64415412,0.0001446,2]
[339516546,1727673038871,-500.0,0.0001446,2]
[339516547,1727673038882,-345.68317049,0.0001446,2]
[339516548,1727673038891,-168.9796252,0.0001446,2]
[339516549,1727673038900,-500.0,0.0001446,2]
[339516550,1727673038910,-500.0,0.0001446,2]
[339516551,1727673038919,-238.60398481,0.0001446,2]
[339516552,1727673038929,-302.49837311,0.0001446,2]
[339516553,1727673038938,-500.0,0.0001446,2]
[339516554,1727673038948,-200.0,0.0001446,2]
[339516555,1727673038957,-65054.29495305,0.00014461,2]
[339516558,1727673040548,-135247.59630866,0.00014461,2]
[339516559,1727673040558,-1040.93367984,0.00014507,2]
[339516560,1727673040568,-150.0,0.00014568,2]
[339516561,1727673040577,-500.0,0.00014573,2]
[339516562,1727673040586,-500.0,0.00014573,2]
[339516563,1727673040596,-500.0,0.00014573,2]
[339516564,1727673040605,-500.0,0.00014573,2]
[339516565,1727673040615,-790.091645,0.00014596,2]
[339516566,1727673040624,-790.091645,0.00014596,2]
[339516567,1727673040634,-790.091645,0.00014596,2]
[339516568,1727673040644,-790.091645,0.00014596,2]
[339516569,1727673040653,-151.0,0.00014596,2]
[339516570,1727673040663,-151.0,0.00014596,2]
[339516571,1727673040672,-291.662579,0.00014596,2]
[339516572,1727673040682,-291.662579,0.00014596,2]
[339516573,1727673040691,-291.662579,0.00014596,2]
[339516574,1727673040700,-291.662579,0.00014596,2]
[339516575,1727673040710,-173.768628,0.00014596,2]
[339516576,1727673040719,-173.768628,0.00014596,2]
[339516577,1727673040729,-182.504128,0.00014596,2]
[339516578,1727673040738,-54392.4322674,0.00014596,2]
[339516579,1727673040753,-55320.4676133,0.00014596,2]
[339516580,1727673040767,-54392.4322674,0.00014597,2]
[339516581,1727673040776,-55320.4676133,0.00014597,2]
[339516582,1727673040785,-15215.84428414,0.00014597,2]
[339516583,1727673040794,-90324.12530418,0.00014597,2]
[339516584,1727673040803,-500.0,0.00014597,2]
[339516585,1727673040813,-500.0,0.00014597,2]
[339516586,1727673040822,-1520.4,0.00014597,2]
[339516587,1727673040832,-3977.0,0.00014597,2]
[339516588,1727673040847,-500.0,0.00014597,2]
[339516589,1727673040857,-500.0,0.00014597,2]
[339516590,1727673040866,-500.0,0.00014597,2]
[339516591,1727673040876,-2296.63,0.00014597,2]
[339516592,1727673040886,-500.0,0.00014597,2]
[339516593,1727673040895,-500.0,0.00014597,2]
[339516594,1727673040906,-1804.61,0.00014597,2]
[339516595,1727673040916,-500.0,0.00014597,2]
[339516596,1727673040926,-500.0,0.00014597,2]
[339516597,1727673040936,-1152.77,0.00014597,2]
[339516598,1727673040947,-500.0,0.00014597,2]
[339516599,1727673040956,-500.0,0.00014597,2]
[339516600,1727673040966,-500.0,0.00014597,2]
[339516601,1727673040975,-500.0,0.00014597,2]
[339516602,1727673040986,-500.0,0.00014597,2]
[339516603,1727673040998,-30701.9,0.00014597,2]
[339516604,1727673041008,-500.0,0.00014597,2]
[339516605,1727673041018,-500.0,0.00014597,2]
[339516606,1727673041028,-790.091645,0.00014597,2]
[339516607,1727673041038,-790.091645,0.00014597,2]
[339516608,1727673041048,-790.091645,0.00014597,2]
[339516609,1727673041058,-790.091645,0.00014597,2]
[339516610,1727673041068,-541.31,0.00014597,2]
[339516611,1727673041077,-4697.05,0.00014597,2]
[339516612,1727673041087,-666.8,0.00014597,2]
[339516613,1727673041097,-151.0,0.00014597,2]
[339516614,1727673041106,-153.580886,0.00014597,2]
[339516615,1727673041116,-1017.16,0.00014597,2]
[339516616,1727673041127,-291.662579,0.00014597,2]
[339516617,1727673041136,-291.662579,0.00014597,2]
[339516618,1727673041147,-291.662579,0.00014597,2]
[339516619,1727673041156,-291.662579,0.00014597,2]
[339516620,1727673041166,-720.74,0.00014597,2]
[339516621,1727673041176,-672.32,0.00014597,2]
[339516622,1727673041185,-500.0,0.00014597,2]
[339516623,1727673041195,-1085.81,0.00014597,2]
[339516624,1727673041205,-173.768628,0.00014597,2]
[339516625,1727673041214,-173.768628,0.00014597,2]
[339516626,1727673041224,-186550.89094248,0.00014597,2]
[339516791,1727673044979,-647.82269529,0.00014573,2]
[339516792,1727673044989,-182.504128,0.00014596,2]
[339516793,1727673044999,-151.0,0.00014596,2]
[339516794,1727673045008,-173.768628,0.00014596,2]
[339516795,1727673045017,-151.0,0.00014596,2]
[339516796,1727673045027,-173.768628,0.00014596,2]
[339516797,1727673045036,-500.0,0.00014597,2]
[339516798,1727673045046,-182.504128,0.00014597,2]
[339516799,1727673045056,-182.504128,0.00014597,2]
[339516800,1727673045065,-173.768628,0.00014597,2]
[339516801,1727673045076,-151.0,0.00014597,2]
[339516802,1727673045085,-173.768628,0.00014597,2]
[339516803,1727673045095,-151.0,0.00014597,2]
[339516804,1727673045104,-247.236154,0.00014597,2]
[339516805,1727673045114,-31018.83812752,0.00014597,2]
[339516806,1727673045124,-10941.05245088,0.00014597,2]
[339516933,1727674191958,170.456878,0.00013558,2]
[339516978,1727674237950,-3113.19864475,0.00014438,2]
[339516985,1727674239812,-2319.05654946,0.00014438,2]
[339516986,1727674239826,-300.0,0.00014448,2]
[339516987,1727674239837,-300.0,0.00014448,2]
[339516988,1727674239850,-500.0,0.00014448,2]
[339516989,1727674239863,-500.0,0.00014448,2]
[339516990,1727674239874,-500.0,0.00014448,2]
[339516991,1727674239885,-500.0,0.00014448,2]
[339516992,1727674239897,-500.0,0.00014448,2]
[339516993,1727674239916,-500.0,0.00014448,2]
[339516994,1727674239928,-500.0,0.00014448,2]
[339516995,1727674239940,-500.0,0.00014448,2]
[339516996,1727674239955,-500.0,0.00014448,2]
[339516997,1727674239966,-500.0,0.00014448,2]
[339516998,1727674239979,-517.92,0.00014448,2]
[339516999,1727674239991,-52841.490361,0.00014449,2]
[339517000,1727674240003,-49241.3682294,0.00014449,2]
[339517001,1727674240015,-241.97821934,0.00014458,2]
[339517002,1727674240027,-230.75090789,0.00014458,2]
[339517003,1727674240039,-500.0,0.00014458,2]
[339517004,1727674240050,-500.0,0.00014458,2]
[339517005,1727674240062,-217.02278936,0.00014458,2]
[339517006,1727674240073,-161.52563552,0.00014458,2]
[339517007,1727674240084,-500.0,0.00014459,2]
[339517008,1727674240096,-500.0,0.00014459,2]
[339517009,1727674240108,-500.0,0.00014459,2]
[339517010,1727674240120,-500.0,0.00014459,2]
[339517011,1727674240131,-500.0,0.00014459,2]
[339517012,1727674240143,-500.0,0.00014459,2]
[339517013,1727674240155,-500.0,0.00014459,2]
[339517014,1727674240167,-500.0,0.00014459,2]
[339517015,1727674240178,-500.0,0.00014459,2]
[339517016,1727674240189,-500.0,0.00014459,2]
[339517017,1727674240201,-500.0,0.00014459,2]
[339517018,1727674240212,-500.0,0.00014459,2]
[339517019,1727674240224,-500.0,0.00014459,2]
[339517020,1727674240236,-500.91369879,0.00014459,2]
[339517021,1727674240247,-500.0,0.00014459,2]
[339517022,1727674240259,-500.0,0.00014459,2]
[339517023,1727674240270,-953.75,0.00014459,2]
[339517024,1727674240282,-500.0,0.00014459,2]
[339517025,1727674240293,-671.8,0.00014459,2]
[339517026,1727674240305,-500.0,0.00014459,2]
[339517027,1727674240317,-553.37,0.00014459,2]
[339517028,1727674240328,-736.68,0.00014459,2]
[339517029,1727674240340,-500.0,0.00014459,2]
[339517030,1727674240352,-500.0,0.00014459,2]
[339517031,1727674240363,-2810.93,0.00014459,2]
[339517032,1727674240375,-500.0,0.00014459,2]
[339517033,1727674240387,-500.0,0.00014459,2]
[339517034,1727674240398,-500.0,0.00014459,2]
[339517035,1727674240410,-500.0,0.00014459,2]
[339517036,1727674240423,-500.0,0.00014459,2]
[339517037,1727674240434,-500.0,0.00014459,2]
[339517038,1727674240447,-550.87314204,0.00014459,2]
[339517039,1727674240459,-500.0,0.00014459,2]
[339517040,1727674240471,-740.82,0.00014459,2]
[339517041,1727674240483,-500.0,0.00014459,2]
[339517042,1727674240495,-783.96,0.00014459,2]
[339517043,1727674240507,-500.0,0.00014459,2]
[339517044,1727674240520,-500.0,0.00014459,2]
[339517045,1727674240531,-500.0,0.00014459,2]
[339517046,1727674240543,-594.27,0.00014459,2]
[339517047,1727674240555,-500.0,0.00014459,2]
[339517048,1727674240567,-500.0,0.00014459,2]
[339517049,1727674240578,-185.78234481,0.00014459,2]
[339517050,1727674240590,-500.0,0.00014459,2]
[339517051,1727674240602,-500.0,0.00014459,2]
[339517052,1727674240614,-500.0,0.00014459,2]
[339517053,1727674240626,-506.47,0.00014459,2]
[339517054,1727674240639,-500.0,0.00014459,2]
[339517055,1727674240650,-500.0,0.00014459,2]
[339517056,1727674240662,-181.45469363,0.00014459,2]
[339517057,1727674240676,-500.0,0.00014459,2]
[339517058,1727674240688,-500.0,0.00014459,2]
[339517059,1727674240700,-500.0,0.00014459,2]
[339517060,1727674240712,-500.0,0.00014459,2]
[339517061,1727674240724,-500.0,0.00014459,2]
[339517062,1727674240736,-500.0,0.00014459,2]
[339517063,1727674240748,-569.97,0.00014459,2]
[339517064,1727674240760,-500.0,0.00014459,2]
[339517065,1727674240772,-500.0,0.00014459,2]
[339517066,1727674240783,-500.0,0.00014459,2]
[339517067,1727674240796,-500.0,0.00014459,2]
[339517068,1727674240808,-500.0,0.00014459,2]
[339517069,1727674240820,-628.44,0.00014459,2]
[339517070,1727674240831,-500.0,0.00014459,2]
[339517071,1727674240843,-500.0,0.00014459,2]
[339517072,1727674240855,-1931.95,0.00014459,2]
[339517073,1727674240867,-603.34831941,0.00014459,2]